fUSD/lending_fUSD_20250617
["ID","MTS","AMOUNT","RATE_DAILY","PERIOD"]
[366246282,1750163330173,10000.0,0.00014,2]
[366246283,1750163330198,10000.0,0.00014,2]
[366246284,1750163330221,10000.0,0.00014,2]
[366246285,1750163330244,10000.0,0.00014,2]
[366246286,1750163330269,10000.0,0.00014,2]
[366246287,1750163330295,10000.0,0.00014,2]
[366246288,1750163330319,10000.0,0.00014,2]
[366246289,1750163330344,10000.0,0.00014,2]
[366246290,1750163330368,10000.0,0.00014,2]
[366246291,1750163330393,10000.0,0.00014,2]
[366246292,1750163330627,10000.0,0.00014,2]
[366246293,1750163330656,10000.0,0.00014,2]
[366246294,1750163330680,10000.0,0.00014,2]
[366246295,1750163330703,10000.0,0.00014,2]
[366246296,1750163330726,10000.0,0.00014,2]
[366246297,1750163330748,10000.0,0.00014,2]
[366246298,1750163330771,10000.0,0.00014,2]
[366246299,1750163330794,10000.0,0.00014,2]
[366246300,1750163330817,10000.0,0.00014,2]
[366246301,1750163330840,10000.0,0.00014,2]
[366246302,1750163330864,10000.0,0.00014,2]
[366246303,1750163330887,10000.0,0.00014,2]
[366246304,1750163330911,10000.0,0.00014,2]
[366246305,1750163330935,10000.0,0.00014,2]
[366246306,1750163330959,10000.0,0.00014,2]
[366246307,1750163330984,10000.0,0.00014,2]
[366246308,1750163331007,10000.0,0.00014,2]
[366246309,1750163331032,10000.0,0.00014,2]
[366246310,1750163331055,10000.0,0.00014,2]
[366246311,1750163331081,10000.0,0.00014,2]
[366246312,1750163331108,10000.0,0.00014,2]
[366246313,1750163331133,10000.0,0.00014,2]
[366246322,1750163377236,2859.07741827,0.000114,5]
[366246323,1750163377259,2704.92258173,0.000114,5]
[366246327,1750163397630,154.15483654,0.00013,4]
[366246328,1750163397652,245.84516346,0.00013,4]
[366246329,1750163399712,800.0,0.000131,4]
[366246340,1750163431352,-377.66855226,0.000132,4]
[366246341,1750163431418,-306.08175989,0.000132,4]
[366246342,1750163431430,-510.54,0.000132,4]
[366246343,1750163431443,-5.70968785,0.000132,4]
[366246344,1750163431453,-1600.0,0.000133,4]
[366246345,1750163431462,-2000.0,0.000134,4]
[366246346,1750163431472,-400.0,0.000135,4]
[366246347,1750163431481,-202.0,0.00013532,2]
[366246348,1750163431490,-400.0,0.000136,4]
[366246349,1750163431499,-268.61,0.00013699,2]
[366246350,1750163431510,-400.0,0.000137,5]
[366246351,1750163431520,-400.0,0.000138,5]
[366246352,1750163431530,-400.0,0.000139,5]
[366246353,1750163431539,-500.0,0.00013973,2]
[366246354,1750163431549,-500.0,0.00013973,2]
[366246355,1750163431558,-500.0,0.00013973,2]
[366246356,1750163431568,-141460.0,0.00013973,2]
[366246357,1750163431577,-10646.55929654,0.00013973,2]
[366246358,1750163431607,-1060.617,0.00013973,2]
[366246359,1750163431637,-586.92837782,0.00013973,2]
[366246360,1750163431654,-2594.57144009,0.00013973,2]
[366246361,1750163431666,-378.55248536,0.00013973,2]
[366246362,1750163431679,-515.7121,0.00013973,2]
[366246363,1750163431705,-564.08793815,0.00013973,2]
[366246364,1750163431718,-423.15719013,0.00013973,2]
[366246365,1750163431729,-492.5527292,0.00013973,2]
[366246891,1750163437411,-206.98137295,0.000139,2]
[366246893,1750163437421,-233.89045776,0.00013973,2]
[366246895,1750163437433,-26689.37098495,0.00013973,2]
[366246927,1750163437743,-443.0,0.00013973,2]
[366246929,1750163437754,-151.48,0.0001399,2]
[366246931,1750163437764,-151.48,0.0001399,2]
[366246933,1750163437774,-151.48,0.0001399,2]
[366246935,1750163437785,-151.48,0.0001399,2]
[366246937,1750163437794,-151.48,0.0001399,2]
[366246939,1750163437804,-151.48,0.0001399,2]
[366246942,1750163437814,-151.48,0.0001399,2]
[366246944,1750163437824,-151.48,0.0001399,2]
[366246946,1750163437834,-151.48,0.0001399,2]
[366246948,1750163437844,-151.48,0.0001399,2]
[366246950,1750163437854,-151.48,0.0001399,2]
[366246952,1750163437864,-151.48,0.0001399,2]
[366246954,1750163437874,-151.48,0.0001399,2]
[366246956,1750163437884,-151.48,0.0001399,2]
[366246957,1750163437894,-151.48,0.0001399,2]
[366246958,1750163437904,-151.48,0.0001399,2]
[366246959,1750163437914,-151.48,0.0001399,2]
[366246960,1750163437925,-151.48,0.0001399,2]
[366246961,1750163437935,-151.48,0.0001399,2]
[366246962,1750163437944,-151.48,0.0001399,2]
[366246963,1750163437954,-151.48,0.0001399,2]
[366246964,1750163437964,-151.48,0.0001399,2]
[366246965,1750163437975,-151.48,0.0001399,2]
[366246966,1750163437985,-151.48,0.0001399,2]
[366246968,1750163437995,-151.48,0.0001399,2]
[366246969,1750163438005,-2974.55105613,0.0001399,2]
[366246971,1750163438015,-2974.55105613,0.0001399,2]
[366246973,1750163438025,-2974.55105613,0.0001399,2]
[366246975,1750163438034,-253.682,0.00013999,2]
[366246977,1750163438044,-1200.0,0.00013999,2]
[366246979,1750163438053,-240.02139675,0.00013999,2]
[366246981,1750163438063,-671.50940766,0.00013999,2]
[366246983,1750163438072,-11089.54151041,0.00014,2]
[366246987,1750163438102,-368.47889,0.00014,2]
[366246990,1750163438123,-17701.98200626,0.00014,2]
[366246992,1750163438136,-1919.3843866,0.00014,2]
[366246995,1750163438149,-1687.75982,0.00014,2]
[366246997,1750163438168,-300.0,0.00014,2]
[366247000,1750163438180,-13559.83484187,0.00014,2]
[366247002,1750163438200,-1467.09110243,0.00014,2]
[366247005,1750163438212,-435.42,0.00014,2]
[366247007,1750163438224,-318.4925114,0.00014,2]
[366247010,1750163438249,-27741133.7491681,0.00014,2]
[366247138,1750163439529,-31261.0668547,0.00014,2]
[366247147,1750163439606,-98895.15075295,0.00014,2]
[366247160,1750163439718,-276.8575456,0.00014,2]
[366247169,1750163439843,-1632.78026785,0.00014,2]
[366247171,1750163439867,-798.52623198,0.00014,2]
[366247173,1750163439880,-263.9574886,0.00014,2]
[366247174,1750163439892,-511.08466066,0.00014,2]
[366247176,1750163439915,-15009.75668964,0.00014,2]
[366247178,1750163439927,-3866.95019455,0.00014,2]
[366247180,1750163439939,-2564.0,0.00014,2]
[366247389,1750163442387,-202.0,0.00013532,2]
[366247391,1750163442399,-66860.45164193,0.00014,2]
[366247397,1750163442444,-5650.23703788,0.00014,2]
[366247409,1750163442555,-1738.6529752,0.00014,2]
[366247412,1750163442568,-1694.09766681,0.00014,2]
[366247418,1750163442618,-400.0,0.00014,2]
[366247420,1750163442631,-334.77220536,0.00014,2]
[366247422,1750163442642,-1390.11345,0.00014,2]
[366247427,1750163442674,-13346.72054671,0.00014,2]
[366247822,1750163446740,-250.0,0.00014,2]
[366247827,1750163446780,-1990.41,0.00014,2]
[366248910,1750163589283,500.0,0.00012976,2]
[366248911,1750163590371,1313.23225481,0.0001069,2]
[366248912,1750163590392,2859.07741827,0.0001069,2]
[366248913,1750163590413,2859.07741827,0.0001069,2]
[366248914,1750163590433,2859.07741827,0.0001069,2]
[366248915,1750163590453,2859.07741827,0.0001069,2]
[366248916,1750163590473,2859.07741827,0.0001069,2]
[366248917,1750163590493,2859.07741827,0.0001069,2]
[366248918,1750163590514,2859.07741827,0.0001069,2]
[366248923,1750163647800,-2369.98341664,0.0001069,2]
[366248924,1750163647823,-600.0,0.00011759,4]
[366248925,1750163647845,-169.94402502,0.000134,2]
[366248926,1750163647870,-600.0,0.000135,4]
[366248927,1750163647893,-600.0,0.00013516,4]
[366248928,1750163647916,-201.0,0.00013532,2]
[366248929,1750163647942,-201.0,0.00013532,2]
[366248930,1750163647965,-1200.0,0.000136,4]
[366248931,1750163647988,-1900.0,0.000137,5]
[366248932,1750163648010,-306.17,0.00013766,2]
[366248933,1750163648032,-300.0,0.00013799,2]
[366248934,1750163648056,-2500.0,0.000138,5]
[366248935,1750163648078,-150.0,0.00013899,2]
[366248936,1750163648101,-3200.0,0.000139,5]
[366248937,1750163648124,-984.50142416,0.000139,2]
[366248938,1750163648148,-4717.40113418,0.000139,2]
[366248939,1750163648261,-500.0,0.00012976,2]
[366248940,1750163648286,-200.0,0.00013337,2]
[366248941,1750163648310,-17373.39319898,0.000139,2]
[366248942,1750163648333,-1926.60680102,0.000139,2]
[366248943,1750163648414,-20000.0,0.000139,2]
[366248944,1750163648502,-18439.68328148,0.000139,2]
[366248945,1750163648527,-1560.31671852,0.000139,2]
[366248946,1750163648628,-20000.0,0.000139,2]
[366248947,1750163648718,-20000.0,0.000139,2]
[366248948,1750163648884,-20000.0,0.000139,2]
[366248949,1750163649001,-20000.0,0.000139,2]
[366248950,1750163649134,-234.3687696,0.000139,2]
[366248951,1750163649157,-500.0,0.00013973,2]
[366248952,1750163649179,-502.92160923,0.00013973,2]
[366248953,1750163649202,-500.0,0.00013973,2]
[366248954,1750163649226,-500.0,0.00013973,2]
[366248955,1750163649248,-500.0,0.00013973,2]
[366248956,1750163649270,-501.86116812,0.00013973,2]
[366248957,1750163649292,-500.0,0.00013973,2]
[366248958,1750163649314,-500.0,0.00013973,2]
[366248959,1750163649336,-500.0,0.00013973,2]
[366248960,1750163649358,-519.91520254,0.00013973,2]
[366248961,1750163649380,-499.35901289,0.00013973,2]
[366248962,1750163649402,-6816.64388979,0.00013999,2]
[366248963,1750163649424,-239.70793607,0.00013999,2]
[366248964,1750163649446,-300.0,0.00013999,2]
[366248965,1750163649472,-452.47721763,0.00013999,2]
[366248966,1750163649494,-500.0,0.00013999,2]
[366248967,1750163649518,-500.0,0.00013999,2]
[366248968,1750163649542,-182.79439207,0.00013999,2]
[366248969,1750163649565,-500.0,0.00013999,2]
[366248970,1750163649589,-500.0,0.00013999,2]
[366248971,1750163649612,-500.0,0.00013999,2]
[366248972,1750163649635,-518.19785105,0.00013999,2]
[366248973,1750163649659,-500.0,0.00013999,2]
[366248974,1750163649684,-228.10410605,0.00013999,2]
[366248975,1750163649707,-291.40047329,0.00013999,2]
[366248976,1750163649729,-500.0,0.00013999,2]
[366248977,1750163649751,-500.0,0.00013999,2]
[366248978,1750163649774,-500.0,0.00013999,2]
[366248979,1750163649796,-433.04159119,0.00013999,2]
[366248980,1750163649819,-279.20678048,0.00013999,2]
[366248981,1750163649861,-220.79321952,0.00013999,2]
[366248982,1750163649884,-500.0,0.00013999,2]
[366248983,1750163649907,-649.77869046,0.00013999,2]
[366248984,1750163649931,-500.0,0.00013999,2]
[366248985,1750163649953,-500.0,0.00013999,2]
[366248986,1750163649976,-363.20301802,0.00013999,2]
[366248987,1750163650000,-500.0,0.00013999,2]
[366248988,1750163650023,-500.0,0.00013999,2]
[366248989,1750163650047,-500.0,0.00013999,2]
[366248990,1750163650071,-236.363363,0.00013999,2]
[366248991,1750163650094,-500.0,0.00013999,2]
[366248992,1750163650117,-500.0,0.00013999,2]
[366248993,1750163650140,-423.14169324,0.00013999,2]
[366248994,1750163650164,-500.0,0.00013999,2]
[366248995,1750163650190,-224.29299358,0.00013999,2]
[366248996,1750163650213,-500.0,0.00013999,2]
[366248997,1750163650237,-500.0,0.00013999,2]
[366248998,1750163650260,-541.77263966,0.00013999,2]
[366248999,1750163650284,-500.0,0.00013999,2]
[366249000,1750163650308,-500.0,0.00013999,2]
[366249001,1750163650564,-500.0,0.00013999,2]
[366249002,1750163650589,-500.0,0.00013999,2]
[366249003,1750163650613,-666.0,0.00013999,2]
[366249004,1750163650636,-9174.65438252,0.00014,2]
[366249005,1750163650673,-20000.0,0.00014,2]
[366249006,1750163650801,-20000.0,0.00014,2]
[366249007,1750163650858,-20000.0,0.00014,2]
[366249008,1750163650931,-20000.0,0.00014,2]
[366249009,1750163650981,-20000.0,0.00014,2]
[366249010,1750163651042,-20000.0,0.00014,2]
[366249011,1750163651112,-500.67505859,0.00013973,2]
[366249012,1750163651136,-19499.32494141,0.00014,2]
[366249013,1750163651212,-20000.0,0.00014,2]
[366249014,1750163651298,-20000.0,0.00014,2]
[366249015,1750163651382,-20000.0,0.00014,2]
[366249016,1750163651541,-20000.0,0.00014,2]
[366249017,1750163652186,-20000.0,0.00014,2]
[366249018,1750163652235,-20000.0,0.00014,2]
[366249019,1750163652378,-20000.0,0.00014,2]
[366249020,1750163652502,-200.0,0.00012532,2]
[366249021,1750163652528,-19800.0,0.00014,2]
[366249022,1750163652566,-20000.0,0.00014,2]
[366249023,1750163652718,-200.0,0.00013036,2]
[366249024,1750163652742,-19800.0,0.00014,2]
[366249025,1750163652798,-20000.0,0.00014,2]
[366249026,1750163652916,-200.0,0.00013541,3]
[366249027,1750163652940,-19800.0,0.00014,2]
[366249028,1750163652977,-20000.0,0.00014,2]
[366249029,1750163653072,-20000.0,0.00014,2]
[366249030,1750163653153,-20000.0,0.00014,2]
[366249031,1750163653209,-20000.0,0.00014,2]
[366249032,1750163653550,-20000.0,0.00014,2]
[366249033,1750163653608,-20000.0,0.00014,2]
[366249034,1750163653659,-20000.0,0.00014,2]
[366249035,1750163653716,-20000.0,0.00014,2]
[366249036,1750163653763,-20000.0,0.00014,2]
[366249037,1750163653905,-20000.0,0.00014,2]
[366249038,1750163653982,-20000.0,0.00014,2]
[366249039,1750163654122,-20000.0,0.00014,2]
[366249040,1750163654304,-20000.0,0.00014,2]
[366249041,1750163654479,-20000.0,0.00014,2]
[366249042,1750163654722,-20000.0,0.00014,2]
[366249043,1750163654866,-20000.0,0.00014,2]
[366249044,1750163655022,-20000.0,0.00014,2]
[366249045,1750163655175,-20000.0,0.00014,2]
[366249046,1750163655335,-20000.0,0.00014,2]
[366249047,1750163655554,-20000.0,0.00014,2]
[366249048,1750163655674,-20000.0,0.00014,2]
[366249049,1750163655817,-20000.0,0.00014,2]
[366249050,1750163655959,-20000.0,0.00014,2]
[366249051,1750163656112,-20000.0,0.00014,2]
[366249052,1750163656314,-20000.0,0.00014,2]
[366249053,1750163656457,-20000.0,0.00014,2]
[366249054,1750163656600,-20000.0,0.00014,2]
[366249055,1750163656762,-20000.0,0.00014,2]
[366249056,1750163656905,-20000.0,0.00014,2]
[366249057,1750163657079,-20000.0,0.00014,2]
[366249058,1750163657216,-20000.0,0.00014,2]
[366249059,1750163657526,-20000.0,0.00014,2]
[366249060,1750163657709,-20000.0,0.00014,2]
[366249061,1750163657901,-20000.0,0.00014,2]
[366249062,1750163658034,-20000.0,0.00014,2]
[366249063,1750163658178,-20000.0,0.00014,2]
[366249064,1750163658326,-20000.0,0.00014,2]
[366249065,1750163658498,-20000.0,0.00014,2]
[366249066,1750163658591,-20000.0,0.00014,2]
[366249067,1750163658728,-20000.0,0.00014,2]
[366249068,1750163658859,-20000.0,0.00014,2]
[366249069,1750163659019,-20000.0,0.00014,2]
[366249070,1750163659203,-20000.0,0.00014,2]
[366249071,1750163659336,-20000.0,0.00014,2]
[366249074,1750163664575,-20000.0,0.00014,2]
[366249075,1750163664722,-20000.0,0.00014,2]
[366249076,1750163665048,-20000.0,0.00014,2]
[366249077,1750163665192,-20000.0,0.00014,2]
[366249078,1750163665332,-20000.0,0.00014,2]
[366249079,1750163665475,-20000.0,0.00014,2]
[366249080,1750163665624,-20000.0,0.00014,2]
[366249081,1750163665792,-20000.0,0.00014,2]
[366249082,1750163666350,-20000.0,0.00014,2]
[366249083,1750163666419,-20000.0,0.00014,2]
[366249084,1750163666470,-20000.0,0.00014,2]
[366249085,1750163666542,-20000.0,0.00014,2]
[366249086,1750163666713,-20000.0,0.00014,2]
[366249087,1750163666814,-20000.0,0.00014,2]
[366249088,1750163666910,-20000.0,0.00014,2]
[366249089,1750163666986,-20000.0,0.00014,2]
[366249090,1750163667122,-20000.0,0.00014,2]
[366249092,1750163716774,-202.0,0.00012532,2]
[366249093,1750163716796,-250.0,0.00013026,2]
[366249094,1750163716818,-661.91510852,0.000139,2]
[366249095,1750163716841,-500.0,0.00013973,2]
[366249096,1750163716863,-500.0,0.00013973,2]
[366249097,1750163716886,-500.0,0.00013973,2]
[366249098,1750163716908,-500.0,0.00013973,2]
[366249099,1750163716931,-500.0,0.00013973,2]
[366249100,1750163716954,-500.0,0.00013973,2]
[366249101,1750163716978,-500.0,0.00013973,2]
[366249102,1750163717002,-324.40475698,0.00013999,2]
[366249103,1750163717026,-300.0,0.00013999,2]
[366249104,1750163717050,-1200.0,0.00013999,2]
[366249105,1750163717075,-13561.6801345,0.00014,2]
[366249106,1750163717175,-20000.0,0.00014,2]
[366249107,1750163717220,-20000.0,0.00014,2]
[366249108,1750163717277,-20000.0,0.00014,2]
[366249109,1750163717330,-20000.0,0.00014,2]
[366249110,1750163717432,-20000.0,0.00014,2]
[366249111,1750163717569,-20000.0,0.00014,2]
[366249112,1750163717725,-20000.0,0.00014,2]
[366249113,1750163717864,-20000.0,0.00014,2]
[366249114,1750163718024,-20000.0,0.00014,2]
[366249115,1750163718162,-20000.0,0.00014,2]
[366249116,1750163718297,-20000.0,0.00014,2]
[366249117,1750163718476,-20000.0,0.00014,2]
[366249118,1750163718632,-20000.0,0.00014,2]
[366249119,1750163718759,-20000.0,0.00014,2]
[366249120,1750163718892,-20000.0,0.00014,2]
[366249121,1750163719019,-20000.0,0.00014,2]
[366249122,1750163719149,-20000.0,0.00014,2]
[366249123,1750163719609,-20000.0,0.00014,2]
[366249124,1750163719656,-20000.0,0.00014,2]
[366249125,1750163719688,-20000.0,0.00014,2]
[366249126,1750163719742,-20000.0,0.00014,2]
[366249127,1750163719927,-20000.0,0.00014,2]
[366249128,1750163720066,-20000.0,0.00014,2]
[366249129,1750163720371,-20000.0,0.00014,2]
[366249130,1750163720576,-20000.0,0.00014,2]
[366249131,1750163720724,-20000.0,0.00014,2]
[366249132,1750163720928,-20000.0,0.00014,2]
[366249133,1750163721266,-20000.0,0.00014,2]
[366249134,1750163727502,-2324.11,0.0001372,2]
[366249135,1750163727539,-17675.89,0.00014,2]
[366249136,1750163727591,-20000.0,0.00014,2]
[366249137,1750163727627,-20000.0,0.00014,2]
[366249138,1750163727700,-20000.0,0.00014,2]
[366249139,1750163727744,-20000.0,0.00014,2]
[366249140,1750163727826,-20000.0,0.00014,2]
[366249141,1750163727967,-1164.2770604,0.00013999,5]
[366249142,1750163727992,-18835.7229396,0.00014,2]
[366249143,1750163728121,-1164.2770604,0.00013999,5]
[366249144,1750163728147,-1164.27706041,0.00013999,5]
[366249145,1750163728172,-17671.44587919,0.00014,2]
[366249146,1750163728256,-20000.0,0.00014,2]
[366249147,1750163728321,-20000.0,0.00014,2]
[366249148,1750163728384,-20000.0,0.00014,2]
[366249149,1750163728461,-20000.0,0.00014,2]
[366249150,1750163728537,-20000.0,0.00014,2]
[366249151,1750163728603,-20000.0,0.00014,2]
[366249152,1750163728833,-20000.0,0.00014,2]
[366249154,1750163728991,-20000.0,0.00014,2]
[366249155,1750163729167,-20000.0,0.00014,2]
[366249156,1750163729310,-20000.0,0.00014,2]
[366249157,1750163729458,-20000.0,0.00014,2]
[366249158,1750163729643,-20000.0,0.00014,2]
[366249159,1750163729814,-20000.0,0.00014,2]
[366249160,1750163730011,-20000.0,0.00014,2]
[366249161,1750163730208,-20000.0,0.00014,2]
[366249162,1750163730368,-20000.0,0.00014,2]
[366249163,1750163730547,-20000.0,0.00014,2]
[366249164,1750163730699,-20000.0,0.00014,2]
[366249165,1750163730896,-20000.0,0.00014,2]
[366249166,1750163731038,-20000.0,0.00014,2]
[366249167,1750163731157,-20000.0,0.00014,2]
[366249168,1750163731362,-20000.0,0.00014,2]
[366249169,1750163731498,-20000.0,0.00014,2]
[366249170,1750163731680,-20000.0,0.00014,2]
[366249171,1750163732030,-20000.0,0.00014,2]
[366249172,1750163732088,-20000.0,0.00014,2]
[366249173,1750163732144,-20000.0,0.00014,2]
[366249174,1750163732349,-20000.0,0.00014,2]
[366249175,1750163732777,-20000.0,0.00014,2]
[366249176,1750163732832,-20000.0,0.00014,2]
[366249177,1750163732899,-687.51804517,0.000139,2]
[366249178,1750163732923,-19312.48195483,0.00014,2]
[366249179,1750163733037,-20000.0,0.00014,2]
[366249180,1750163733182,-20000.0,0.00014,2]
[366249181,1750163733353,-20000.0,0.00014,2]
[366249182,1750163733531,-20000.0,0.00014,2]
[366249183,1750163733638,-20000.0,0.00014,2]
[366249184,1750163733793,-20000.0,0.00014,2]
[366249185,1750163733956,-20000.0,0.00014,2]
[366249186,1750163734096,-20000.0,0.00014,2]
[366249187,1750163734241,-20000.0,0.00014,2]
[366249188,1750163734414,-20000.0,0.00014,2]
[366249189,1750163734563,-20000.0,0.00014,2]
[366249190,1750163734698,-17410.58347478,0.000139,2]
[366249191,1750163734723,-2589.41652522,0.00014,2]
[366249192,1750163734859,-20000.0,0.00014,2]
[366249193,1750163735003,-20000.0,0.00014,2]
[366249194,1750163735141,-20000.0,0.00014,2]
[366249195,1750163735279,-20000.0,0.00014,2]
[366249196,1750163735433,-20000.0,0.00014,2]
[366249197,1750163735587,-20000.0,0.00014,2]
[366249198,1750163735721,-20000.0,0.00014,2]
[366249199,1750163735863,-20000.0,0.00014,2]
[366249200,1750163736029,-20000.0,0.00014,2]
[366249201,1750163736180,-20000.0,0.00014,2]
[366249217,1750163768127,9716.011773,7.945e-05,2]
[366249223,1750163876658,-201.0,0.00012532,2]
[366249224,1750163876683,-479.0,0.00012532,2]
[366249225,1750163876707,-500.0,0.00012976,2]
[366249226,1750163876733,-500.0,0.00012976,2]
[366249228,1750163956195,2318.95,0.00018,30]
[366249229,1750163968290,172.51,0.00010565,2]
[366249232,1750164014818,210.0,0.00013047,2]
[366249234,1750164071508,393.4,0.00013047,2]
[366249235,1750164071534,610.6,0.00013047,2]
[366249238,1750164156884,916.87,0.00013063,2]
[366249242,1750164195698,6620.02,0.0001069,2]
[366249243,1750164195723,7525.77188499,0.0001069,2]
[366249244,1750164201210,1000.0,0.00013077,2]
[366249245,1750164221483,1102.1721,0.00013047,2]
[366249247,1750164258036,150.0,0.00013063,2]
[366249248,1750164259694,222.05601501,0.000131,2]
[366249249,1750164259718,245.69373937,0.000131,2]
[366249251,1750164336867,166.47551217,0.00013034,2]
[366249252,1750164344035,9587.83074846,0.000131,2]
[366249253,1750164344062,10000.0,0.000131,2]
[366249254,1750164344087,10000.0,0.000131,2]
[366249255,1750164344111,10000.0,0.000131,2]
[366249256,1750164344135,10000.0,0.000131,2]
[366249257,1750164344159,10000.0,0.000131,2]
[366249258,1750164344184,10000.0,0.000131,2]
[366249259,1750164344221,10000.0,0.000131,2]
[366249260,1750164344249,10000.0,0.000131,2]
[366249261,1750164344274,10000.0,0.000131,2]
[366249262,1750164344299,10000.0,0.000131,2]
[366249263,1750164344325,10000.0,0.000131,2]
[366249264,1750164344351,10000.0,0.000131,2]
[366249265,1750164344377,10000.0,0.000131,2]
[366249266,1750164344401,10000.0,0.000131,2]
[366249267,1750164344426,10000.0,0.000131,2]
[366249268,1750164344451,10000.0,0.000131,2]
[366249269,1750164344476,10000.0,0.000131,2]
[366249270,1750164344501,10000.0,0.000131,2]
[366249271,1750164344525,10000.0,0.000131,2]
[366249272,1750164344550,10000.0,0.000131,2]
[366249273,1750164344576,10000.0,0.000131,2]
[366249274,1750164344599,10000.0,0.000131,2]
[366249275,1750164344623,2220.16925154,0.000131,2]
[366249327,1750164372503,208.0,0.00012521,2]
[366249328,1750164372596,208.0,0.00013,2]
[366249331,1750164410173,200.0,0.00012521,2]
[366249332,1750164486465,828.13,0.00012984,2]
[366249334,1750164496296,166.1,0.00012984,2]
[366249335,1750164535483,-200.0,0.00013102,7]
[366249336,1750164535508,-171.27,0.00013217,2]
[366249337,1750164535532,-432.12,0.00013217,2]
[366249338,1750164535558,-208.0,0.0001348,3]
[366249339,1750164535582,-1852.42,0.00013589,2]
[366249340,1750164535606,-213.7617703,0.00013598,2]
[366249341,1750164535632,-1200.0,0.00013698,2]
[366249342,1750164535657,-200.0,0.00013699,2]
[366249343,1750164535681,-452.54,0.00013699,2]
[366249344,1750164535705,-666.0,0.00013699,2]
[366249345,1750164535729,-1500.0,0.00013699,2]
[366249346,1750164535753,-300.0,0.00013799,2]
[366249347,1750164535778,-400.0,0.000138,5]
[366249348,1750164535801,-300.0,0.00013802,2]
[366249349,1750164535826,-658.82213387,0.00013874,2]
[366249350,1750164535849,-171.0,0.00013877,2]
[366249351,1750164535873,-373.0,0.00013887,2]
[366249352,1750164535897,-150.0,0.00013899,2]
[366249353,1750164535921,-807.76663072,0.000139,2]
[366249354,1750164535945,-162.01885449,0.000139,2]
[366249355,1750164535969,-504.79175633,0.000139,2]
[366249356,1750164535994,-213.77502046,0.000139,2]
[366249357,1750164536018,-27057.07323944,0.000139,2]
[366249358,1750164536044,-22198.86535693,0.000139,2]
[366249359,1750164536069,-29606.77523746,0.000139,2]
[366249360,1750164582145,201.0,0.00012521,2]
[366249361,1750164587079,5564.0,0.000126,5]
[366249365,1750164631793,-521.22,0.00013116,2]
[366249366,1750164631803,-600.0,0.00013899,2]
[366249367,1750164631815,-1200.0,0.00013899,2]
[366249368,1750164631824,-2050.23265922,0.000139,2]
[366249369,1750164631836,-35.58234078,0.000139,2]
[366249370,1750164631847,-682.97685624,0.000139,2]
[366249371,1750164631858,-800.0,0.000139,5]
[366249372,1750164631867,-633.41519918,0.000139,2]
[366249373,1750164631877,-596.0,0.00013918,2]
[366249374,1750164631886,-98.90920011,0.0001396,3]